[Event "1st Turkish League 2017"]
[Site "Konya"]
[Date "2017.07.21"]
[Round "7"]
[White "Gulbeyaz, Emir"]
[Black "Isik, Alparslan"]
[Result "0-1"]
[ECO "D00"]
[WhiteElo "1952"]
[BlackElo "2211"]
[Annotator "NA"]
[PlyCount "48"]
[EventType "team-tourn"]
[EventCountry "TUR"]
[SourceTitle "playchess.com"]
[Source "ChessBase"]
[SourceQuality "1"]
[TimeControl "5400+30"]

1. d4 {[%emt 0:00:30]} Nf6 {[%emt 0:01:00]} 2. Bg5 {[%emt 0:00:30]} d5 {[%emt 0:00:30]} 3. Bxf6 {[%emt 0:01:30]} gxf6 {[%emt 0:00:30]} 4. e3 {[%emt 0:00:30]} c5 {[%emt 0:06:30]} 5. c3 {[%emt 0:10:30]} e6 {[%emt 0:05:30]} 6. Nd2 {[%emt 0:00:30]} Nc6 {[%emt 0:02:30] LiveBook: 4 Games} 7. Bd3 {[%emt 0:00:30]} Bd7 {[%emt 0:03:30]} 8. Qh5 {[%emt 0:06:30]} Bd6 {[%emt 0:03:30]} 9. dxc5 {[%emt 0:09:30]} Bxc5 {[%emt 0:00:30]} 10. e4 $17 {[%emt 0:01:30]} (10. Nb3 $11 Bd6 11. Nf3) 10... Ne5 {[%emt 0:02:30]} 11. Be2 {[%emt 0:04:30]} Bc6 {[%emt 0:10:30]} 12. O-O-O {[%emt 0:01:30]} Qb6 {[%emt 0:06:30]} 13. Qh4 {[%emt 0:08:30]} Be7 {[%emt 0:04:30]} 14. exd5 {[%emt 0:04:30]} Bxd5 {[%emt 0:01:30]} 15. Ngf3 {[%emt 0:02:30]} Ng6 {[%emt 0:06:30]} 16. Qa4+ {[%emt 0:05:30]} Bc6 {[%emt 0:00:30]} 17. Qc4 {[%emt 0:08:30]} O-O-O {[%emt 0:02:30]} 18. Nb3 {[%emt 0:05:30]} Kb8 {[%emt 0:03:30]} 19. Nbd4 {[%emt 0:01:30]} Bd5 {[%emt 0:01:30]} 20. Qb5 {[%emt 0:03:30]} Qc7 {[%emt 0:08:30]} 21. Kb1 {[%emt 0:02:30]} Nf4 {[%emt 0:01:30]} 22. Rhg1 {[%emt 0:05:38]} e5 {[%emt 0:01:30]} 23. Nc2 {[%emt 0:08:18]} a6 {[%emt 0:00:30]} 24. Qa4 {[%emt 0:00:45]} Nxe2 {[%emt 0:00:30]} 0-1

[Event "1st Turkish League 2017"]
[Site "Konya"]
[Date "2017.07.21"]
[Round "7"]
[White "Demirtas, Hafize"]
[Black "Yorgun, Yaren Naz"]
[Result "1/2-1/2"]
[ECO "B07"]
[WhiteElo "1676"]
[BlackElo "1733"]
[Annotator "NA"]
[PlyCount "94"]
[EventType "team-tourn"]
[EventCountry "TUR"]
[SourceTitle "playchess.com"]
[Source "ChessBase"]
[SourceQuality "1"]
[TimeControl "5400+30"]

1. e4 d6 2. d4 Nf6 3. Nc3 Nbd7 4. g3 e5 5. Nge2 Be7 6. Bg2 c6 7. a4 b6 8. O-O Bb7 9. h3 Qc7 10. Be3 a6 11. Rb1 b5 12. axb5 cxb5 13. dxe5 dxe5 14. Nd5 Nxd5 15. exd5 Bd6 16. g4 Rc8 17. c3 O-O 18. Ng3 Rfd8 19. Nf5 Nb6 20. Bxb6 Qxb6 21. Qd2 Bf8 22. Rfd1 g6 23. Ng3 Rc7 24. Qe2 Rcd7 25. Qxe5 Bd6 26. Qd4 Qxd4 27. Rxd4 Bxg3 28. fxg3 Bxd5 29. Rbd1 Be6 30. Rxd7 Rxd7 31. Rxd7 Bxd7 32. b4 Bc8 33. Kf2 Kf8 34. Ke3 Ke7 35. Kd4 Kd6 36. g5 Bd7 37. h4 Be6 38. Bf3 Bd7 39. Bd5 Be6 40. Bf3 Bd7 41. Bd5 Be6 42. Be4 Bc8 43. Bd5 Be6 44. Bh1 Bc8 45. Bg2 Bd7 46. Bb7 Kc7 47. Bg2 a5 1/2-1/2

[Event "1st Turkish League 2017"]
[Site "Konya"]
[Date "2017.07.21"]
[Round "7"]
[White "Altinoz, Fevziye Ece"]
[Black "Nechaeva, Marina"]
[Result "0-1"]
[ECO "D02"]
[WhiteElo "1666"]
[BlackElo "2408"]
[Annotator "NA"]
[PlyCount "102"]
[EventType "team-tourn"]
[EventCountry "TUR"]
[SourceTitle "playchess.com"]
[Source "ChessBase"]
[SourceQuality "1"]
[TimeControl "5400+30"]

1. d4 {[%emt 0:00:30]} d5 {[%emt 0:01:00]} 2. Bf4 {[%emt 0:00:30]} Nf6 {[%emt 0:00:30]} 3. e3 {[%emt 0:00:00]} c5 {[%emt 0:00:00]} 4. c3 {[%emt 0:00:00]} Nc6 {[%emt 0:00:00]} 5. Nf3 {[%emt 0:00:30]} Qb6 {[%emt 0:00:00]} 6. Qb3 {[%emt 0:01:30]} c4 {[%emt 0:00:00]} 7. Qxb6 {[%emt 0:04:30]} axb6 {[%emt 0:00:00]} 8. Be2 {[%emt 0:04:30]} Bf5 {[%emt 0:00:00]} 9. Nbd2 {[%emt 0:01:30]} b5 {[%emt 0:00:30]} 10. O-O {[%emt 0:09:30] LiveBook: 5 Games} b4 {[%emt 0:03:30]} 11. cxb4 {[%emt 0:08:30]} (11. Nh4 $5 {[%cal Rh4f5]} Bg4 12. Bxg4 Nxg4 13. Nhf3 $11) 11... Nxb4 {[%emt 0:00:30]} 12. a3 {[%emt 0:00:30]} Nd3 {[%emt 0:00:00]} 13. Bxd3 {[%emt 0:12:30]} Bxd3 {[%emt 0:00:00]} 14. Rfc1 {[%emt 0:03:30]} e6 {[%emt 0:01:30]} 15. Ne5 {[%emt 0:02:30]} Bf5 $11 {[%emt 0:01:30]} 16. f3 {[%emt 0:09:30]} b5 {[%emt 0:11:30]} 17. g4 {[%emt 0:10:30]} Bg6 {[%emt 0:00:00]} 18. h4 {[%emt 0:03:30]} Nd7 {[%emt 0:01:00]} 19. Nxg6 {[%emt 0:04:30]} hxg6 {[%emt 0:00:30]} 20. Bg3 {[%emt 0:00:30]} Be7 {[%emt 0:00:00]} 21. g5 {[%emt 0:00:30]} f6 {[%emt 0:07:00]} 22. f4 {[%emt 0:01:30]} Kf7 {[%emt 0:00:30]} 23. Kg2 {[%emt 0:01:46]} Ra4 {[%emt 0:01:30]} 24. Rab1 {[%emt 0:04:59]} Rha8 {[%emt 0:01:30]} 25. Be1 {[%emt 0:03:24]} Nb8 {[%emt 0:04:30]} 26. Nf3 {[%emt 0:04:11]} Nc6 {[%emt 0:00:30]} 27. Kg3 {[%emt 0:00:45]} Bd6 {[%emt 0:01:30]} 28. Bc3 {[%emt 0:01:06]} Ne7 {[%emt 0:00:30]} 29. Ne1 {[%emt 0:01:35]} Nf5+ {[%emt 0:02:30]} 30. Kf2 {[%emt 0:03:17]} Nxh4 {[%emt 0:00:00]} 31. gxf6 {[%emt 0:00:38]} gxf6 {[%emt 0:00:00]} 32. Nc2 {[%emt 0:00:56]} Rh8 {[%emt 0:02:30]} 33. Rh1 {[%emt 0:01:47]} Raa8 {[%emt 0:00:00]} 34. Nb4 {[%emt 0:00:40]} Nf5 {[%emt 0:03:00]} 35. Rbg1 {[%emt 0:00:40]} Kg7 {[%emt 0:02:30]} 36. Bd2 {[%emt 0:00:36]} Bxb4 {[%emt 0:03:30]} 37. Bxb4 {[%emt 0:00:30]} Rxh1 {[%emt 0:00:30]} 38. Rxh1 {[%emt 0:00:00]} Rh8 {[%emt 0:00:00]} 39. Rxh8 {[%emt 0:01:02]} Kxh8 {[%emt 0:00:00]} 40. Be1 {[%emt 0:00:39]} Kg7 {[%emt 0:00:00]} 41. Kf3 {[%emt 0:00:33]} g5 {[%emt 0:00:00]} 42. fxg5 {[%emt 0:00:37]} fxg5 {[%emt 0:00:30]} 43. Bf2 {[%emt 0:00:00]} Nd6 {[%emt 0:00:30]} 44. Bg3 {[%emt 0:00:44]} Ne4 {[%emt 0:00:30]} 45. Be5+ {[%emt 0:00:36]} Kg6 {[%emt 0:00:00]} 46. Kg2 {[%emt 0:00:36]} Kf5 {[%emt 0:00:00]} 47. Kf3 {[%emt 0:00:17]} Nd2+ {[%emt 0:01:30]} 48. Kf2 {[%emt 0:00:26]} Ke4 {[%emt 0:00:30]} 49. Ke2 {[%emt 0:00:55]} Nb3 {[%emt 0:00:30]} 50. Bg3 {[%emt 0:00:25]} Nc1+ {[%emt 0:00:00]} 51. Kd2 {[%emt 0:00:34]} Nd3 {[%emt 0:00:00]} 0-1

[Event "1st Turkish League 2017"]
[Site "Konya"]
[Date "2017.07.21"]
[Round "7"]
[White "Saim, Sida"]
[Black "Erece, Ece Alkim"]
[Result "1/2-1/2"]
[ECO "A31"]
[WhiteElo "1634"]
[BlackElo "1829"]
[Annotator "NA"]
[PlyCount "124"]
[EventType "team-tourn"]
[EventCountry "TUR"]
[SourceTitle "playchess.com"]
[Source "ChessBase"]
[SourceQuality "1"]
[TimeControl "5400+30"]

1. c4 {[%emt 0:00:30]} Nf6 {[%emt 0:01:00]} 2. Nc3 {[%emt 0:00:00]} c5 {[%emt 0:00:30]} 3. Nf3 {[%emt 0:01:00]} g6 {[%emt 0:01:30]} 4. g3 {[%emt 0:01:30]} Nc6 {[%emt 0:00:30]} 5. Bg2 {[%emt 0:00:30]} d6 {[%emt 0:00:00]} 6. O-O {[%emt 0:00:30]} Bg7 {[%emt 0:00:00]} 7. d4 {[%emt 0:02:30]} cxd4 {[%emt 0:00:30]} 8. Nxd4 {[%emt 0:00:30]} Bd7 {[%emt 0:00:30]} 9. Rb1 {[%emt 0:02:30]} O-O {[%emt 0:03:30]} 10. Re1 {[%emt 0:10:30]} Nxd4 {[%emt 0:03:30]} 11. Qxd4 {[%emt 0:00:30]} Bc6 {[%emt 0:00:00]} 12. Qd3 {[%emt 0:02:30]} Bxg2 {[%emt 0:06:00]} 13. Kxg2 {[%emt 0:00:30]} Nd7 {[%emt 0:00:30]} 14. Ne4 {[%emt 0:05:30]} Ne5 {[%emt 0:20:30]} 15. Qd5 {[%emt 0:03:30]} Qc7 {[%emt 0:00:30]} 16. b3 {[%emt 0:02:30]} Rfd8 {[%emt 0:02:30]} 17. c5 {[%emt 0:09:30]} e6 {[%emt 0:06:30]} 18. Qd2 {[%emt 0:07:30]} dxc5 {[%emt 0:02:30]} 19. Qc2 {[%emt 0:00:30]} b6 {[%emt 0:01:30]} 20. Bg5 {[%emt 0:03:30]} Rd5 {[%emt 0:05:30]} 21. h4 {[%emt 0:07:30]} h6 {[%emt 0:09:30]} 22. Bf4 {[%emt 0:13:30]} Qb7 {[%emt 0:03:30]} 23. Kg1 {[%emt 0:02:30]} Rad8 {[%emt 0:00:30]} 24. Qc1 {[%emt 0:06:52]} Kh7 {[%emt 0:01:30]} 25. f3 {[%emt 0:02:31]} Nc6 {[%emt 0:02:30]} 26. Kg2 {[%emt 0:04:13]} Nd4 {[%emt 0:01:30]} 27. g4 {[%emt 0:02:46]} f5 {[%emt 0:03:30]} 28. Nc3 {[%emt 0:01:22]} R5d7 {[%emt 0:00:30]} 29. g5 {[%emt 0:01:15]} h5 {[%emt 0:01:30]} 30. Be3 {[%emt 0:01:48]} e5 {[%emt 0:00:30]} 31. Bg1 {[%emt 0:00:30]} Ne6 {[%emt 0:00:30]} 32. Be3 {[%emt 0:01:47]} e4 {[%emt 0:04:50]} 33. Bf2 {[%emt 0:03:13]} Rd2 {[%emt 0:01:46]} 34. fxe4 {[%emt 0:00:28]} Bxc3 {[%emt 0:00:14]} 35. Qxc3 {[%emt 0:00:04]} Qxe4+ {[%emt 0:00:38]} 36. Qf3 {[%emt 0:00:30]} Nf4+ {[%emt 0:00:00]} 37. Kf1 {[%emt 0:00:41]} Re8 {[%emt 0:04:17]} 38. Qxe4 {[%emt 0:00:30]} Rxe4 {[%emt 0:01:25]} 39. Rbd1 {[%emt 0:00:31]} Rxa2 {[%emt 0:01:07]} 40. Rd7+ {[%emt 0:00:30]} Kg8 {[%emt 0:00:14]} 41. Rd8+ {[%emt 0:00:22]} Kf7 {[%emt 0:00:17]} 42. Rd7+ {[%emt 0:00:40]} Re7 {[%emt 0:00:22]} 43. Rd6 {[%emt 0:00:38]} Raxe2 {[%emt 0:03:47]} 44. Red1 {[%emt 0:00:50]} R2e6 {[%emt 0:00:16]} 45. Rd8 {[%emt 0:00:05]} Ne2 {[%emt 0:01:03]} 46. Rh8 {[%emt 0:00:27]} Nc3 {[%emt 0:02:59]} 47. Rdd8 {[%emt 0:00:21]} Re4 {[%emt 0:04:23]} 48. Rdf8+ {[%emt 0:00:53]} Ke6 {[%emt 0:00:32]} 49. Rf6+ {[%emt 0:00:17]} Ke5 {[%emt 0:00:22]} 50. Rxg6 {[%emt 0:00:34]} Kf4 {[%emt 0:00:36]} 51. Rf6 {[%emt 0:00:59]} Nd1 {[%emt 0:00:33]} 52. Rhf8 {[%emt 0:00:06]} R7e5 {[%emt 0:00:22]} 53. g6 {[%emt 0:00:35]} Nxf2 {[%emt 0:02:36]} 54. g7 {[%emt 0:00:02]} Ng4 {[%emt 0:01:28]} 55. Rxf5+ {[%emt 0:00:20]} Rxf5 {[%emt 0:00:01]} 56. g8=Q {[%emt 0:00:38]} Rxf8 {[%emt 0:00:00]} 57. Qxf8+ {[%emt 0:00:04]} Kg3 {[%emt 0:00:00]} 58. Qb8+ {[%emt 0:01:03]} Kxh4 {[%emt 0:00:00]} 59. Qxa7 {[%emt 0:00:22]} Rf4+ {[%emt 0:00:00]} 60. Ke1 {[%emt 0:00:18]} Rf6 {[%emt 0:00:00]} 61. Qd7 {[%emt 0:00:35]} Kg5 {[%emt 0:01:46]} 62. Qd5+ {[%emt 0:00:44]} Kh4 {[%emt 0:00:10]} 1/2-1/2

[Event "1st Turkish League 2017"]
[Site "Konya"]
[Date "2017.07.21"]
[Round "7"]
[White "Sahin, Hayrun Nisa"]
[Black "Ozbek, Busra"]
[Result "0-1"]
[ECO "E61"]
[WhiteElo "1576"]
[BlackElo "1796"]
[Annotator "NA"]
[PlyCount "84"]
[EventType "team-tourn"]
[EventCountry "TUR"]
[SourceTitle "playchess.com"]
[Source "ChessBase"]
[SourceQuality "1"]
[TimeControl "5400+30"]

1. c4 {[%emt 0:00:30]} g6 {[%emt 0:01:00]} 2. d4 {[%emt 0:00:30]} Bg7 {[%emt 0:00:00]} 3. Nc3 {[%emt 0:00:30]} d6 {[%emt 0:00:00]} 4. g3 {[%emt 0:00:30]} Nf6 {[%emt 0:01:30]} 5. Bg2 {[%emt 0:01:30]} O-O {[%emt 0:01:30]} 6. e3 {[%emt 0:01:30]} Re8 {[%emt 0:05:30]} 7. Nge2 {[%emt 0:01:30]} Nbd7 {[%emt 0:01:30]} 8. O-O {[%emt 0:02:30]} e5 {[%emt 0:01:30]} 9. dxe5 {[%emt 0:05:30]} dxe5 {[%emt 0:11:30]} 10. Qc2 {[%emt 0:12:30]} c6 {[%emt 0:04:30]} 11. Rd1 {[%emt 0:05:30]} Qe7 {[%emt 0:02:30]} 12. e4 {[%emt 0:05:30]} Nf8 {[%emt 0:02:30]} 13. h3 {[%emt 0:04:30]} Be6 {[%emt 0:01:30]} 14. b3 {[%emt 0:00:30]} Rad8 {[%emt 0:04:30]} 15. Be3 {[%emt 0:01:30]} b6 {[%emt 0:04:30]} 16. Kh2 {[%emt 0:04:30]} Bc8 {[%emt 0:05:30]} 17. a4 {[%emt 0:12:30]} Ne6 {[%emt 0:08:30]} 18. a5 {[%emt 0:03:30]} Qc7 {[%emt 0:00:30]} 19. axb6 {[%emt 0:00:30]} axb6 {[%emt 0:00:30]} 20. Na4 {[%emt 0:06:30]} Nd4 {[%emt 0:13:30]} 21. Nxd4 {[%emt 0:06:30]} exd4 {[%emt 0:00:30]} 22. Bxd4 {[%emt 0:00:00]} Ng4+ {[%emt 0:00:30]} 23. hxg4 {[%emt 0:01:00]} Bxd4 {[%emt 0:00:30]} 24. Rab1 {[%emt 0:01:30]} Bxg4 {[%emt 0:00:30]} 25. f3 {[%emt 0:01:39]} Bc8 {[%emt 0:01:30]} 26. Nc3 {[%emt 0:02:32]} h5 {[%emt 0:01:30]} 27. Ne2 {[%emt 0:02:01]} Bf2 {[%emt 0:04:30]} 28. f4 {[%emt 0:03:22]} h4 {[%emt 0:03:19]} 29. gxh4 {[%emt 0:00:34]} Qe7 {[%emt 0:01:47]} 30. Qc3 {[%emt 0:03:16]} Qxh4+ {[%emt 0:00:30]} 31. Bh3 {[%emt 0:00:00]} Rxd1 {[%emt 0:00:07]} 32. Rxd1 {[%emt 0:00:00]} Rxe4 {[%emt 0:00:25]} 33. Qd3 {[%emt 0:04:31]} Qxh3+ {[%emt 0:01:40]} 34. Qxh3 {[%emt 0:00:30]} Bxh3 {[%emt 0:00:30]} 35. Kxh3 {[%emt 0:00:30]} Rxe2 {[%emt 0:00:30]} 36. Rd6 {[%emt 0:00:30]} Bc5 {[%emt 0:01:20]} 37. Rxc6 {[%emt 0:00:00]} Re3+ {[%emt 0:00:30]} 38. Kg4 {[%emt 0:00:25]} Rxb3 {[%emt 0:00:00]} 39. Rc8+ {[%emt 0:00:00]} Kg7 {[%emt 0:00:00]} 40. Re8 {[%emt 0:00:00]} Re3 {[%emt 0:00:00]} 41. Rxe3 {[%emt 0:01:54]} Bxe3 {[%emt 0:00:24]} 42. f5 {[%emt 0:00:30]} g5 {[%emt 0:00:00]} 0-1

[Event "1st Turkish League 2017"]
[Site "Konya"]
[Date "2017.07.22"]
[Round "8"]
[White "Nechaeva, Marina"]
[Black "Bivol, Alina"]
[Result "1/2-1/2"]
[ECO "E84"]
[WhiteElo "2408"]
[BlackElo "2379"]
[Annotator "NA"]
[PlyCount "62"]
[EventType "team-tourn"]
[EventCountry "TUR"]
[SourceTitle "playchess.com"]
[Source "ChessBase"]
[SourceQuality "1"]
[TimeControl "5400+30"]

1. d4 {[%emt 0:00:00]} Nf6 {[%emt 0:00:00]} 2. c4 {[%emt 0:00:00]} g6 {[%emt 0:00:30]} 3. Nc3 {[%emt 0:00:00]} Bg7 {[%emt 0:00:30]} 4. e4 {[%emt 0:00:00]} d6 {[%emt 0:00:30]} 5. f3 {[%emt 0:00:30]} O-O {[%emt 0:00:30]} 6. Nge2 {[%emt 0:00:30]} Nc6 {[%emt 0:00:30]} 7. Be3 {[%emt 0:01:30] [%clk 1:31]} a6 {[%emt 0:01:30]} 8. Qd2 {[%emt 0:00:30]} Rb8 {[%emt 0:00:30]} 9. Rc1 {[%emt 0:00:30]} Bd7 {[%emt 0:00:30]} 10. Nd1 {[%emt 0:06:30] E84: King's Indian: Sämisch Panno: 7 Nge2 a6 8 Qd2 Rb8} (10. h4 h5 11. Nd1 e5 12. d5 Ne7 13. Nf2 Nh7 14. c5 f5 15. Qb4 fxe4 16. fxe4 Rf6 17. cxd6 cxd6 {1-0 (37) Kovalenko,I (2667)-Smirin,I (2676) Poikovsky 2016}) 10... Re8 {[%emt 0:04:30]} 11. Nf2 {[%emt 0:04:30]} e6 {[%emt 0:00:30]} 12. Bg5 {[%emt 0:01:30]} e5 {[%emt 0:02:30]} 13. d5 {[%emt 0:01:30]} Nd4 {[%emt 0:02:30]} 14. Nxd4 {[%emt 0:02:30]} exd4 {[%emt 0:00:30]} 15. Be2 {[%emt 0:00:30]} c5 {[%emt 0:02:30]} 16. dxc6 {[%emt 0:01:30]} bxc6 {[%emt 0:00:30]} 17. Bf4 {[%emt 0:04:30]} Rb7 {[%emt 0:00:30]} 18. Bxd6 {[%emt 0:03:30]} Bh3 $146 {[%emt 0:01:30]} 19. Nxh3 $14 {[%emt 0:05:30]} (19. c5 $16 Bxg2 20. Rg1 Bxf3 21. Bxf3) 19... Qxd6 {[%emt 0:00:30]} 20. Nf2 {[%emt 0:01:30]} Nd7 {[%emt 0:02:30]} 21. O-O {[%emt 0:01:30]} Be5 {[%emt 0:01:30]} 22. g3 {[%emt 0:02:30]} Bxg3 {[%emt 0:02:30]} 23. hxg3 {[%emt 0:00:30]} Qxg3+ {[%emt 0:00:30]} 24. Kh1 {[%emt 0:00:30]} Nf6 {[%emt 0:00:30]} 25. Qxd4 {[%emt 0:03:30]} Nh5 {[%emt 0:00:00]} 26. Rg1 {[%emt 0:01:30]} Qh4+ {[%emt 0:00:00]} 27. Kg2 {[%emt 0:00:30]} Qg5+ {[%emt 0:00:30]} 28. Kh2 {[%emt 0:00:00]} Qf4+ {[%emt 0:01:30]} 29. Kh3 {[%emt 0:01:00]} Qh6 {[%emt 0:01:30]} 30. Kg2 {[%emt 0:01:30]} Qg5+ {[%emt 0:00:30]} 31. Kh2 {[%emt 0:00:30]} Qf4+ {[%emt 0:00:00]} 1/2-1/2

[Event "1st Turkish League 2017"]
[Site "Konya"]
[Date "2017.07.22"]
[Round "8"]
[White "Erturan, Yakup"]
[Black "Mollaoglu, Ergin"]
[Result "1/2-1/2"]
[ECO "D94"]
[WhiteElo "2371"]
[BlackElo "2322"]
[Annotator "NA"]
[PlyCount "61"]
[EventType "team-tourn"]
[EventCountry "TUR"]
[SourceTitle "playchess.com"]
[Source "ChessBase"]
[SourceQuality "1"]
[TimeControl "5400+30"]

1. d4 {[%emt 0:00:30]} Nf6 {[%emt 0:02:00]} 2. c4 {[%emt 0:00:30]} c6 {[%emt 0:00:30]} 3. Nc3 {[%emt 0:02:30] [%clk 1:28]} d5 {[%emt 0:01:30]} 4. e3 {[%emt 0:00:30]} g6 {[%emt 0:00:30]} 5. Nf3 {[%emt 0:02:30]} Bg7 {[%emt 0:00:30]} 6. Bd3 {[%emt 0:00:30]} O-O {[%emt 0:01:30]} 7. O-O {[%emt 0:00:00]} dxc4 {[%emt 0:09:30]} 8. Bxc4 {[%emt 0:00:00]} Nd5 {[%emt 0:04:30]} 9. Qe2 {[%emt 0:12:30]} Be6 {[%emt 0:05:30]} 10. e4 {[%emt 0:01:30]} Nxc3 {[%emt 0:01:30]} 11. bxc3 {[%emt 0:00:30]} Bxc4 {[%emt 0:01:30]} 12. Qxc4 {[%emt 0:00:30]} Nd7 {[%emt 0:00:00]} 13. a4 $14 {[%emt 0:03:30]} c5 {[%emt 0:03:00]} 14. Rb1 {[%emt 0:06:30]} Qc7 {[%emt 0:01:30]} 15. Ba3 {[%emt 0:02:30]} Rac8 {[%emt 0:02:30]} 16. e5 {[%emt 0:02:30]} cxd4 {[%emt 0:03:30]} 17. Qxc7 {[%emt 0:04:30]} Rxc7 {[%emt 0:00:00]} 18. cxd4 {[%emt 0:02:30]} Nb6 {[%emt 0:02:00]} 19. a5 {[%emt 0:08:30]} Nd5 {[%emt 0:01:30]} 20. Bc5 {[%emt 0:02:30]} Ra8 {[%emt 0:00:00]} 21. Rb3 {[%emt 0:01:30]} b6 {[%emt 0:03:00]} 22. Bb4 {[%emt 0:01:30]} Rc4 {[%emt 0:09:30]} 23. Bd2 {[%emt 0:03:30]} e6 {[%emt 0:01:30]} 24. Ra1 {[%emt 0:00:30]} Rac8 {[%emt 0:01:30]} 25. Rb2 {[%emt 0:04:30]} h6 {[%emt 0:02:30]} 26. Kf1 {[%emt 0:00:30]} g5 {[%emt 0:01:30]} 27. h3 {[%emt 0:00:30]} Bf8 {[%emt 0:00:30]} 28. g3 {[%emt 0:06:30]} Be7 {[%emt 0:05:30]} 29. axb6 {[%emt 0:00:30]} axb6 {[%emt 0:00:00]} 30. Rba2 {[%emt 0:00:30]} b5 {[%emt 0:04:00]} 31. Ra8 {[%emt 0:00:30]} 1/2-1/2

[Event "1st Turkish League 2017"]
[Site "Konya"]
[Date "2017.07.22"]
[Round "8"]
[White "Khukhashvili, Sopiko"]
[Black "Dai, Irmak"]
[Result "1-0"]
[ECO "B81"]
[WhiteElo "2339"]
[BlackElo "1938"]
[Annotator "NA"]
[PlyCount "45"]
[EventType "team-tourn"]
[EventCountry "TUR"]
[SourceTitle "playchess.com"]
[Source "ChessBase"]
[SourceQuality "1"]
[TimeControl "5400+30"]

1. e4 {[%emt 0:00:00]} c5 {[%emt 0:00:00]} 2. Nf3 {[%emt 0:00:00]} d6 {[%emt 0:00:30]} 3. d4 {[%emt 0:00:30]} cxd4 {[%emt 0:00:30]} 4. Nxd4 {[%emt 0:00:30]} Nf6 {[%emt 0:00:30]} 5. Nc3 {[%emt 0:00:30]} e6 {[%emt 0:00:30]} 6. g4 {[%emt 0:00:30] [%clk 1:31]} Be7 {[%emt 0:08:30]} 7. Bg2 {[%emt 0:00:30]} O-O {[%emt 0:01:30]} 8. g5 {[%emt 0:00:30]} Nfd7 {[%emt 0:00:30]} 9. h4 {[%emt 0:00:30]} Nc6 {[%emt 0:03:30]} 10. Be3 {[%emt 0:00:30]} Nb6 {[%emt 0:09:30]} 11. Qe2 {[%emt 0:01:30]} a6 {[%emt 0:11:30]} 12. O-O-O {[%emt 0:01:30]} Qc7 {[%emt 0:01:30]} 13. f4 {[%emt 0:02:30]} Nxd4 {[%emt 0:08:30]} 14. Bxd4 {[%emt 0:00:30]} Nc4 {[%emt 0:02:30]} 15. f5 {[%emt 0:00:30]} Ne5 {[%emt 0:02:30]} 16. Bh3 {[%emt 0:04:30]} b5 {[%emt 0:05:30]} 17. f6 {[%emt 0:00:30]} gxf6 {[%emt 0:01:30]} 18. Rdg1 {[%emt 0:00:00]} Kh8 {[%emt 0:03:30]} 19. Qh5 {[%emt 0:05:00]} Bb7 {[%emt 0:10:30]} 20. Qh6 {[%emt 0:04:30]} Qd8 {[%emt 0:10:41]} 21. Bb6 {[%emt 0:01:30]} Qxb6 {[%emt 0:12:16]} 22. gxf6 {[%emt 0:00:30]} Rg8 {[%emt 0:00:31]} 23. Rg7 {[%emt 0:00:00]} 1-0

[Event "1st Turkish League 2017"]
[Site "Konya"]
[Date "2017.07.22"]
[Round "8"]
[White "Kilic, Efe Mert"]
[Black "Sahin, Doga Boran"]
[Result "1/2-1/2"]
[ECO "C02"]
[WhiteElo "2287"]
[BlackElo "2018"]
[Annotator "NA"]
[PlyCount "139"]
[EventType "team-tourn"]
[EventCountry "TUR"]
[SourceTitle "playchess.com"]
[Source "ChessBase"]
[SourceQuality "1"]
[TimeControl "5400+30"]

1. e4 {[%emt 0:00:00]} e6 {[%emt 0:00:00]} 2. d4 {[%emt 0:00:00]} d5 {[%emt 0:00:30]} 3. e5 {[%emt 0:00:30]} c5 {[%emt 0:00:30]} 4. c3 {[%emt 0:00:30]} Nc6 {[%emt 0:00:30]} 5. Nf3 {[%emt 0:00:30]} Qb6 {[%emt 0:00:30]} 6. a3 {[%emt 0:01:30]} Nh6 {[%emt 0:01:30] [%clk 1:29]} 7. Bd3 {[%emt 0:00:30]} cxd4 {[%emt 0:04:30]} 8. cxd4 {[%emt 0:03:30]} Nf5 {[%emt 0:02:30]} 9. Bxf5 {[%emt 0:00:30]} exf5 {[%emt 0:00:30]} 10. Nc3 {[%emt 0:00:30]} Be6 {[%emt 0:00:30]} 11. O-O {[%emt 0:00:30]} Be7 {[%emt 0:00:30]} 12. b4 {[%emt 0:00:30]} O-O {[%emt 0:00:30]} 13. Na4 {[%emt 0:00:30]} Qb5 {[%emt 0:15:30]} 14. Nc5 {[%emt 0:17:30]} a5 {[%emt 0:10:30]} 15. a4 {[%emt 0:00:30]} Qxb4 {[%emt 0:05:30]} 16. Ba3 {[%emt 0:19:30]} Qb6 {[%emt 0:06:30]} 17. Nxe6 {[%emt 0:03:30]} fxe6 {[%emt 0:00:30]} 18. Bxe7 {[%emt 0:00:30]} Nxe7 {[%emt 0:00:30]} 19. Rb1 {[%emt 0:00:00]} Qc7 {[%emt 0:07:30]} 20. Qb3 {[%emt 0:07:00]} Rab8 {[%emt 0:05:30]} 21. Qb6 {[%emt 0:05:30]} Qxb6 {[%emt 0:10:30]} 22. Rxb6 {[%emt 0:00:30]} Nc6 {[%emt 0:00:00]} 23. Rfb1 {[%emt 0:00:00]} Rfc8 {[%emt 0:01:00]} 24. g3 {[%emt 0:01:00]} Rc7 {[%emt 0:06:30]} 25. Ng5 {[%emt 0:00:00]} Nxd4 {[%emt 0:04:52]} 26. Nxe6 {[%emt 0:00:00]} Rc4 {[%emt 0:05:55]} 27. Nxd4 {[%emt 0:01:30]} Rxd4 {[%emt 0:00:30]} 28. Rxb7 {[%emt 0:00:30]} Rxb7 {[%emt 0:02:42]} 29. Rxb7 {[%emt 0:00:00]} Re4 {[%emt 0:00:08]} 30. Ra7 {[%emt 0:01:00]} Rxe5 {[%emt 0:02:50]} 31. Rxa5 {[%emt 0:00:30]} g6 {[%emt 0:02:18]} 32. f3 {[%emt 0:09:30]} Re1+ {[%emt 0:03:35]} 33. Kf2 {[%emt 0:01:30]} Ra1 {[%emt 0:01:19]} 34. Ke3 {[%emt 0:00:30]} Ra2 {[%emt 0:00:10]} 35. Kd4 {[%emt 0:01:30]} Rd2+ {[%emt 0:00:23]} 36. Ke5 {[%emt 0:00:00]} h5 {[%emt 0:00:41]} 37. Rxd5 {[%emt 0:01:00]} Rxh2 {[%emt 0:00:35]} 38. Kf6 {[%emt 0:00:00]} Rg2 {[%emt 0:00:15]} 39. a5 {[%emt 0:00:00]} Kh7 {[%emt 0:00:30]} 40. a6 {[%emt 0:05:30]} Ra2 {[%emt 0:00:09]} 41. Rd6 {[%emt 0:00:00]} f4 {[%emt 0:01:03]} 42. gxf4 {[%emt 0:02:00]} h4 {[%emt 0:00:03]} 43. f5 {[%emt 0:06:44]} gxf5 {[%emt 0:00:34]} 44. Kg5 {[%emt 0:00:39]} h3 {[%emt 0:00:10]} 45. Rh6+ {[%emt 0:00:25]} Kg7 {[%emt 0:00:30]} 46. Rxh3 {[%emt 0:00:30]} Rxa6 {[%emt 0:00:30]} 47. Kxf5 {[%emt 0:00:00]} Ra5+ {[%emt 0:00:00]} 48. Kg4 {[%emt 0:00:00]} Kg6 {[%emt 0:00:19]} 49. Rh8 {[%emt 0:01:48]} Ra1 {[%emt 0:00:33]} 50. Rg8+ {[%emt 0:00:18]} Kf6 {[%emt 0:00:51]} 51. Rf8+ {[%emt 0:00:30]} Kg6 {[%emt 0:00:30]} 52. Rb8 {[%emt 0:00:00]} Rg1+ {[%emt 0:00:58]} 53. Kf4 {[%emt 0:00:00]} Ra1 {[%emt 0:00:24]} 54. Rb6+ {[%emt 0:00:06]} Kf7 {[%emt 0:00:30]} 55. Kg4 {[%emt 0:00:30]} Rg1+ {[%emt 0:00:30]} 56. Kf5 {[%emt 0:00:00]} Ra1 {[%emt 0:00:24]} 57. Rb7+ {[%emt 0:00:06]} Kf8 {[%emt 0:00:16]} 58. f4 {[%emt 0:00:22]} Ra5+ {[%emt 0:00:03]} 59. Kg6 {[%emt 0:00:46]} Ra6+ {[%emt 0:00:30]} 60. Kg5 {[%emt 0:00:00]} Kg8 {[%emt 0:01:05]} 61. f5 {[%emt 0:00:00]} Kf8 {[%emt 0:00:00]} 62. Rh7 {[%emt 0:00:41]} Kg8 {[%emt 0:00:15]} 63. Rd7 {[%emt 0:01:28]} Kf8 {[%emt 0:00:46]} 64. Rh7 {[%emt 0:00:30]} Kg8 {[%emt 0:00:30]} 65. Re7 {[%emt 0:00:00]} Kf8 {[%emt 0:00:00]} 66. Re4 {[%emt 0:00:00]} Kf7 {[%emt 0:00:24]} 67. Rb4 {[%emt 0:00:00]} Kg7 {[%emt 0:00:28]} 68. Rb5 {[%emt 0:00:01]} Kf7 {[%emt 0:00:46]} 69. Rb7+ {[%emt 0:01:30]} Kf8 {[%emt 0:00:15]} 70. Rh7 {[%emt 0:00:35]} 1/2-1/2